fUSD/lending_fUSD_20240910
["ID","MTS","AMOUNT","RATE_DAILY","PERIOD"]
[337663134,1725928242610,-613.09825755,0.00012686,2]
[337663135,1725928242621,-293.75433028,0.00012686,2]
[337663140,1725928243157,-643.71140223,0.00012686,2]
[337663141,1725928243171,-550.08612368,0.00012686,2]
[337663142,1725928243182,-1171.4568179,0.00012686,2]
[337663143,1725928243191,-2498.72,0.00012686,2]
[337663144,1725928243200,-3370.47444169,0.00012686,2]
[337663145,1725928243211,-2865.81931308,0.00012686,2]
[337663146,1725928243222,-10144.70624523,0.00012686,2]
[337663147,1725928243231,-18011.91,0.00012686,2]
[337663148,1725928243240,-3164.62,0.00012686,2]
[337663149,1725928243249,-5763.05,0.00012686,2]
[337663150,1725928243259,-2458.91,0.00012686,2]
[337663151,1725928243268,-183.89752902,0.00012686,2]
[337663152,1725928243278,-1121.39,0.00012686,2]
[337663153,1725928243287,-1045.03,0.00012687,2]
[337663154,1725928243296,-4604.03,0.00012687,2]
[337663155,1725928243306,-3065.34,0.00012687,2]
[337663156,1725928243315,-1645.7,0.00012687,2]
[337663157,1725928243324,-2839.65,0.00012687,2]
[337663158,1725928243334,-4850.56,0.00012687,2]
[337663159,1725928243343,-2166.69,0.00012687,2]
[337663160,1725928243352,-500.0,0.00012687,2]
[337663161,1725928243361,-3566.41,0.00012687,2]
[337663162,1725928243370,-1421.12,0.00012687,2]
[337663163,1725928243379,-3494.92,0.00012687,2]
[337663164,1725928243388,-618.19,0.00012687,2]
[337663165,1725928243398,-2533.47,0.00012687,2]
[337663166,1725928243407,-3664.0,0.00012687,2]
[337663167,1725928243419,-3323.14,0.00012687,2]
[337663168,1725928243428,-1891.7,0.00012687,2]
[337663169,1725928243437,-5962.15,0.00012687,2]
[337663170,1725928243446,-4293.93,0.00012687,2]
[337663171,1725928243456,-3069.34,0.00012687,2]
[337663172,1725928243465,-5414.22,0.00012687,2]
[337663173,1725928243475,-500.0,0.00012687,2]
[337663174,1725928243485,-2514.68,0.00012687,2]
[337663175,1725928243495,-5390.85,0.00012687,2]
[337663176,1725928243506,-2662.43,0.00012687,2]
[337663177,1725928243516,-2909.66,0.00012687,2]
[337663178,1725928243526,-500.0,0.00012687,2]
[337663179,1725928243535,-615.08,0.00012687,2]
[337663180,1725928243546,-6161.27,0.00012687,2]
[337663181,1725928243555,-4415.54,0.00012687,2]
[337663182,1725928243564,-1097.14,0.00012687,2]
[337663183,1725928243575,-2077.78,0.00012687,2]
[337663184,1725928243585,-500.0,0.00012687,2]
[337663185,1725928243593,-500.0,0.00012687,2]
[337663186,1725928243603,-2759.31,0.00012687,2]
[337663187,1725928243612,-500.0,0.00012687,2]
[337663188,1725928243622,-500.0,0.00012687,2]
[337663189,1725928243631,-729.1,0.00012687,2]
[337663190,1725928243641,-500.0,0.00012687,2]
[337663191,1725928243650,-624.57,0.00012687,2]
[337663192,1725928243660,-500.0,0.00012687,2]
[337663193,1725928243671,-619.02,0.00012687,2]
[337663194,1725928243680,-63480.32863933,0.00012687,2]
[337663196,1725928245675,-500.0,0.00012687,2]
[337663197,1725928245964,-329.79596822,0.00012687,2]
[337663198,1725928245975,-3975.80907621,0.00012687,2]
[337663199,1725928245997,-982.5,0.00012687,2]
[337663200,1725928246008,-762.55010791,0.00012687,2]
[337663201,1725928246033,-6720.3091349,0.00012687,2]
[337663202,1725928246059,-960.12504185,0.00012687,2]
[337663203,1725928266540,448.48,0.00010959,2]
[337663204,1725928351008,250.0,0.00011844,2]
[337663205,1725928505608,576.89,9.872e-05,2]
[337663206,1725928534537,402.88,0.00011791,2]
[337663207,1725928534990,402.88,0.00011794,2]
[337663208,1725928535235,402.88,0.00011798,2]
[337663209,1725928535454,402.88,0.00011801,2]
[337663210,1725928535712,402.88,0.00011804,2]
[337663211,1725928535968,150.0,0.00011807,2]
[337663212,1725928535992,252.88,0.00011807,2]
[337663213,1725928536180,150.0,0.0001181,2]
[337663214,1725928536202,252.88,0.0001181,2]
[337663215,1725928536456,150.0,0.00011813,2]
[337663216,1725928536477,150.0,0.00011813,2]
[337663217,1725928536499,102.88,0.00011813,2]
[337663218,1725928536647,197.05,0.00011816,2]
[337663219,1725928536669,205.83,0.00011816,2]
[337663220,1725928536913,402.88,0.00011819,2]
[337663221,1725928537115,402.88,0.00011822,2]
[337663222,1725928537353,402.88,0.00011825,2]
[337663223,1725928537564,402.88,0.00011828,2]
[337663224,1725928537862,402.88,0.00011832,2]
[337663225,1725928538079,402.88,0.00011835,2]
[337663226,1725928538281,402.88,0.00011838,2]
[337663227,1725928538574,402.88,0.00011841,2]
[337663228,1725928538782,402.88,0.00011844,2]
[337663229,1725928538999,402.88,0.00011847,2]
[337663230,1725928539230,402.88,0.0001185,2]
[337663231,1725928561236,1000.0,0.0001179,2]
[337663232,1725928570069,252.8,0.00011788,2]
[337663234,1725928661706,-576.89,0.00012136,2]
[337663235,1725928661733,-150.0,0.00012583,2]
[337663236,1725928661757,-3283.84,0.00012585,2]
[337663237,1725928661784,-150.0,0.00012585,2]
[337663238,1725928661810,-795.08456721,0.00012586,2]
[337663239,1725928661833,-183.89752902,0.00012586,2]
[337663240,1725928661856,-448.143,0.00012586,2]
[337663241,1725928661878,-63480.3286,0.00012586,2]
[337663242,1725928661900,-545.5327,0.00012586,2]
[337663243,1725928661923,-4200.1816,0.00012586,2]
[337663244,1725928661947,-150.0,0.00012588,2]
[337663245,1725928661971,-150.0,0.00012608,2]
[337663246,1725928661993,-591.67725,0.0001261,2]
[337663247,1725928662025,-150.0,0.00012672,2]
[337663248,1725928662050,-150.0,0.00012673,2]
[337663249,1725928662072,-3779.81,0.0001268,2]
[337663250,1725928662095,-360.48712265,0.00012684,2]
[337663251,1725928662118,-8676.17,0.00012684,2]
[337663252,1725928662142,-6174.09,0.00012684,2]
[337663253,1725928662165,-6788.43,0.00012684,2]
[337663254,1725928662187,-9288.71,0.00012684,2]
[337663255,1725928662210,-1640.1,0.00012684,2]
[337663256,1725928662233,-3080.94,0.00012684,2]
[337663257,1725928662255,-7231.95,0.00012684,2]
[337663258,1725928662279,-7591.82,0.00012684,2]
[337663259,1725928662302,-6462.31,0.00012684,2]
[337663260,1725928662325,-500.0,0.00012684,2]
[337663261,1725928662347,-500.0,0.00012684,2]
[337663262,1725928662370,-23759.17,0.00012684,2]
[337663263,1725928662393,-6482.32,0.00012684,2]
[337663264,1725928662416,-500.0,0.00012685,2]
[337663265,1725928662439,-561.91,0.00012685,2]
[337663266,1725928662461,-500.0,0.00012685,2]
[337663267,1725928662484,-500.0,0.00012685,2]
[337663268,1725928662506,-500.0,0.00012685,2]
[337663269,1725928662529,-1045.03,0.00012685,2]
[337663270,1725928662551,-500.0,0.00012685,2]
[337663271,1725928662574,-4604.03,0.00012685,2]
[337663272,1725928662596,-3065.34,0.00012685,2]
[337663273,1725928662618,-818.7,0.00012685,2]
[337663274,1725928662641,-1645.7,0.00012685,2]
[337663275,1725928662667,-500.0,0.00012685,2]
[337663276,1725928662689,-2839.65,0.00012685,2]
[337663277,1725928662712,-500.0,0.00012685,2]
[337663278,1725928662736,-4850.56,0.00012685,2]
[337663279,1725928662759,-2166.69,0.00012685,2]
[337663280,1725928662782,-500.0,0.00012685,2]
[337663281,1725928662805,-833.55,0.00012685,2]
[337663282,1725928662828,-9657.24,0.00012685,2]
[337663283,1725928662850,-3494.92,0.00012685,2]
[337663284,1725928662872,-3566.41,0.00012685,2]
[337663285,1725928662894,-500.0,0.00012685,2]
[337663286,1725928662916,-500.0,0.00012685,2]
[337663287,1725928662939,-8211.86,0.00012685,2]
[337663288,1725928662962,-500.0,0.00012685,2]
[337663289,1725928662984,-1421.12,0.00012685,2]
[337663290,1725928663007,-922.02,0.00012685,2]
[337663291,1725928663030,-580.03,0.00012685,2]
[337663292,1725928663053,-1056.29,0.00012685,2]
[337663293,1725928663075,-6649.62,0.00012685,2]
[337663294,1725928663099,-618.19,0.00012685,2]
[337663295,1725928663121,-500.0,0.00012685,2]
[337663296,1725928663143,-3606.59,0.00012685,2]
[337663297,1725928663165,-2533.47,0.00012685,2]
[337663298,1725928663188,-711.15,0.00012685,2]
[337663299,1725928663210,-3323.14,0.00012685,2]
[337663300,1725928663233,-500.0,0.00012685,2]
[337663301,1725928663255,-3572.53,0.00012685,2]
[337663302,1725928663278,-1935.31,0.00012685,2]
[337663303,1725928663300,-3664.0,0.00012685,2]
[337663304,1725928663325,-500.0,0.00012685,2]
[337663305,1725928663348,-500.0,0.00012685,2]
[337663306,1725928663371,-525.82,0.00012685,2]
[337663307,1725928663393,-5962.15,0.00012685,2]
[337663308,1725928663416,-2671.02,0.00012685,2]
[337663309,1725928663439,-2394.61,0.00012685,2]
[337663310,1725928663462,-1891.7,0.00012685,2]
[337663311,1725928663484,-500.0,0.00012685,2]
[337663312,1725928663694,-3164.62,0.00012685,2]
[337663313,1725928663718,-9464.76,0.00012685,2]
[337663314,1725928663742,-500.0,0.00012685,2]
[337663315,1725928663767,-1121.39,0.00012685,2]
[337663316,1725928663791,-15698.45,0.00012685,2]
[337663317,1725928663814,-500.0,0.00012685,2]
[337663318,1725928663838,-100433.4,0.00012685,2]
[337663319,1725928663860,-500.0,0.00012685,2]
[337663320,1725928663883,-2458.91,0.00012685,2]
[337663321,1725928663906,-4293.93,0.00012685,2]
[337663322,1725928663928,-500.0,0.00012685,2]
[337663323,1725928663951,-6809.84,0.00012685,2]
[337663324,1725928663974,-3069.34,0.00012685,2]
[337663325,1725928663996,-500.0,0.00012685,2]
[337663326,1725928664019,-500.0,0.00012685,2]
[337663327,1725928664042,-14063.31,0.00012685,2]
[337663328,1725928664064,-5414.22,0.00012685,2]
[337663329,1725928664087,-500.0,0.00012685,2]
[337663330,1725928664110,-500.0,0.00012685,2]
[337663331,1725928664134,-500.0,0.00012685,2]
[337663332,1725928664156,-500.0,0.00012685,2]
[337663333,1725928664179,-500.0,0.00012685,2]
[337663334,1725928664203,-500.0,0.00012685,2]
[337663335,1725928664225,-3837.38,0.00012685,2]
[337663336,1725928664248,-500.0,0.00012685,2]
[337663337,1725928664270,-643.39,0.00012685,2]
[337663338,1725928664293,-2514.68,0.00012685,2]
[337663339,1725928664316,-1830.14,0.00012685,2]
[337663340,1725928664339,-5390.85,0.00012685,2]
[337663341,1725928664362,-500.0,0.00012685,2]
[337663342,1725928664385,-500.0,0.00012685,2]
[337663343,1725928664407,-504.28967703,0.00012685,2]
[337663344,1725928664429,-685.08,0.00012685,2]
[337663345,1725928664452,-500.0,0.00012685,2]
[337663346,1725928664474,-500.0,0.00012685,2]
[337663347,1725928664497,-3317.18,0.00012685,2]
[337663348,1725928664520,-2662.43,0.00012685,2]
[337663349,1725928664543,-4687.5,0.00012685,2]
[337663350,1725928664566,-500.0,0.00012685,2]
[337663351,1725928664588,-500.0,0.00012685,2]
[337663352,1725928664611,-500.0,0.00012685,2]
[337663353,1725928664633,-1427.32,0.00012685,2]
[337663354,1725928664658,-2909.66,0.00012685,2]
[337663355,1725928664680,-500.0,0.00012685,2]
[337663356,1725928664704,-500.0,0.00012685,2]
[337663357,1725928664728,-584.91637886,0.00012685,2]
[337663358,1725928664751,-500.0,0.00012685,2]
[337663359,1725928664775,-5717.21,0.00012685,2]
[337663360,1725928664799,-500.0,0.00012685,2]
[337663361,1725928664822,-500.0,0.00012685,2]
[337663362,1725928664845,-6161.27,0.00012685,2]
[337663363,1725928664868,-205.03481963,0.00012685,2]
[337663364,1725928664891,-8487.81,0.00012685,2]
[337663365,1725928664914,-500.0,0.00012685,2]
[337663366,1725928664936,-615.08,0.00012685,2]
[337663367,1725928664960,-500.0,0.00012685,2]
[337663368,1725928664984,-2617.98,0.00012685,2]
[337663369,1725928665007,-294.78993125,0.00012685,2]
[337663370,1725928665032,-4415.54,0.00012685,2]
[337663371,1725928665055,-500.0,0.00012685,2]
[337663372,1725928665077,-1942.61,0.00012685,2]
[337663373,1725928665100,-1097.14,0.00012685,2]
[337663374,1725928665125,-2077.78,0.00012685,2]
[337663375,1725928665148,-500.0,0.00012685,2]
[337663376,1725928665172,-500.0,0.00012685,2]
[337663377,1725928665195,-4340.73,0.00012685,2]
[337663378,1725928665219,-500.0,0.00012685,2]
[337663379,1725928665243,-500.0,0.00012685,2]
[337663380,1725928665278,-500.0,0.00012685,2]
[337663381,1725928665302,-4580.66,0.00012685,2]
[337663382,1725928665327,-500.0,0.00012685,2]
[337663383,1725928665352,-500.0,0.00012685,2]
[337663384,1725928665377,-9757.43,0.00012685,2]
[337663385,1725928665401,-500.0,0.00012685,2]
[337663386,1725928665426,-500.0,0.00012685,2]
[337663387,1725928665451,-15656.24,0.00012685,2]
[337663388,1725928665476,-2759.31,0.00012685,2]
[337663389,1725928665501,-6787.54,0.00012685,2]
[337663390,1725928665529,-500.0,0.00012685,2]
[337663391,1725928665553,-500.0,0.00012685,2]
[337663392,1725928665577,-8761.96,0.00012685,2]
[337663393,1725928665602,-500.0,0.00012685,2]
[337663394,1725928665626,-500.0,0.00012685,2]
[337663395,1725928665904,-500.0,0.00012685,2]
[337663396,1725928665929,-5415.45,0.00012685,2]
[337663397,1725928665953,-13970.55,0.00012685,2]
[337663398,1725928665977,-567.11640075,0.00012685,2]
[337663399,1725928666002,-32307.9,0.00012686,2]
[337663400,1725928666028,-16753.6504236,0.00012686,2]
[337663401,1725928709794,1684.81,0.0001185,2]
[337663449,1725928779906,227.49,0.00011825,2]
[337663453,1725928901405,250.0,0.00011777,2]
[337663460,1725929079408,543.54,9.848e-05,2]
[337663461,1725929088870,169.25,0.00011738,2]
[337663462,1725929107113,150.0,0.00011688,2]
[337663463,1725929107436,150.0,0.00011707,2]
[337663464,1725929107769,150.0,0.00011726,2]
[337663465,1725929108101,150.0,0.00011745,2]
[337663466,1725929108450,150.0,0.00011764,2]
[337663467,1725929108785,150.0,0.00011783,2]
[337663468,1725929109107,150.0,0.00011802,2]
[337663469,1725929109412,150.0,0.00011821,2]
[337663470,1725929109727,150.0,0.0001184,2]
[337663471,1725929110441,150.0,0.0001186,2]
[337663472,1725929110740,150.0,0.00011879,2]
[337663473,1725929111061,150.0,0.00011898,2]
[337663474,1725929111385,150.0,0.00011917,2]
[337663475,1725929111721,150.0,0.00011936,2]
[337663476,1725929112034,150.0,0.00011955,2]
[337663477,1725929112374,150.0,0.00011974,2]
[337663478,1725929112710,150.0,0.00011993,2]
[337663479,1725929133024,150.0,0.00011688,2]
[337663480,1725929133432,150.0,0.0001174,2]
[337663481,1725929133780,150.0,0.00011792,2]
[337663482,1725929134094,150.0,0.00011844,2]
[337663483,1725929134761,150.0,0.00011895,2]
[337663484,1725929134828,150.0,0.00011947,2]
[337663485,1725929135075,150.0,0.00011999,2]
[337663486,1725929145338,150.0,0.00011688,2]
[337663487,1725929146784,200.0,0.00011407,2]
[337663488,1725929148349,197.76,0.00011407,2]
[337663489,1725929148758,150.0,0.00011688,2]
[337663490,1725929149517,150.0,0.00011727,2]
[337663491,1725929149835,150.0,0.00011766,2]
[337663492,1725929150163,150.0,0.00011806,2]
[337663493,1725929150478,150.0,0.00011845,2]
[337663494,1725929150771,150.0,0.00011884,2]
[337663495,1725929151123,150.0,0.00011924,2]
[337663496,1725929151417,150.0,0.00011963,2]
[337663497,1725929151745,150.0,0.00012002,2]
[337663499,1725929165847,150.0,0.00011688,2]
[337663500,1725929167474,150.0,0.00011688,2]
[337663501,1725929169766,150.0,0.00011688,2]
[337663502,1725929171633,150.0,0.00011688,2]
[337663503,1725929171937,150.0,0.00011832,2]
[337663504,1725929172239,150.0,0.00011976,2]
[337663506,1725929180214,150.0,0.00011688,2]
[337663507,1725929183100,1500.0,0.00011,2]
[337663508,1725929194349,1500.0,0.000115,2]
[337663511,1725929354273,156.75,0.00010959,2]
[337663512,1725929355795,-150.0,0.00012012,2]
[337663514,1725929355828,-150.0,0.00012031,2]
[337663516,1725929355858,-150.0,0.00012042,2]
[337663517,1725929355889,-150.0,0.00012051,2]
[337663519,1725929355921,-150.0,0.00012051,2]
[337663521,1725929355952,-150.0,0.0001207,2]
[337663522,1725929355984,-150.0,0.00012081,2]
[337663523,1725929356014,-150.0,0.00012089,2]
[337663524,1725929356046,-150.0,0.00012103,2]
[337663525,1725929356078,-150.0,0.00012108,2]
[337663526,1725929356116,-543.54,0.00012112,2]
[337663527,1725929356147,-150.0,0.00012121,2]
[337663528,1725929356178,-150.0,0.00012121,2]
[337663529,1725929356209,-150.0,0.00012127,2]
[337663530,1725929356239,-1231.36,0.00012127,2]
[337663531,1725929356270,-150.0,0.00012146,2]
[337663532,1725929356300,-150.0,0.00012155,2]
[337663533,1725929356334,-150.0,0.0001216,2]
[337663534,1725929356368,-150.0,0.00012165,2]
[337663535,1725929356399,-150.0,0.00012184,2]
[337663536,1725929356430,-150.0,0.00012199,2]
[337663537,1725929356460,-150.0,0.00012203,2]
[337663538,1725929356491,-150.0,0.00012207,2]
[337663539,1725929356523,-150.0,0.00012222,2]
[337663540,1725929356554,-150.0,0.00012239,2]
[337663541,1725929356589,-150.0,0.00012241,2]
[337663542,1725929356624,-150.0,0.00012259,2]
[337663543,1725929356656,-246.72556473,0.00012259,2]
[337663544,1725929356696,-53.27443527,0.00012259,2]
[337663545,1725929356727,-150.0,0.00012259,2]
[337663546,1725929356759,-150.0,0.00012261,2]
[337663547,1725929356790,-150.0,0.00012265,2]
[337663548,1725929356820,-150.0,0.00012278,2]
[337663549,1725929356854,-150.0,0.0001228,2]
[337663550,1725929356884,-150.0,0.00012299,2]
[337663551,1725929357163,-150.0,0.00012311,2]
[337663552,1725929357192,-150.0,0.00012317,2]
[337663553,1725929357222,-150.0,0.00012318,2]
[337663554,1725929357250,-192.25,0.00012324,2]
[337663555,1725929357279,-512.75,0.00012329,2]
[337663556,1725929357307,-150.0,0.00012337,2]
[337663557,1725929357336,-150.0,0.00012337,2]
[337663558,1725929357365,-150.0,0.00012356,2]
[337663559,1725929357394,-150.0,0.00012357,2]
[337663560,1725929357424,-150.0,0.00012363,2]
[337663561,1725929357456,-150.0,0.00012375,2]
[337663562,1725929357486,-150.0,0.00012394,2]
[337663563,1725929357516,-150.0,0.00012396,2]
[337663564,1725929357546,-150.0,0.00012409,2]
[337663565,1725929357576,-150.0,0.00012413,2]
[337663566,1725929357606,-150.0,0.00012415,2]
[337663567,1725929357636,-421.39411001,0.00012428,2]
[337663568,1725929357666,-150.0,0.00012432,2]
[337663569,1725929357697,-150.0,0.00012435,2]
[337663570,1725929357728,-150.0,0.00012452,2]
[337663571,1725929357758,-150.0,0.00012467,2]
[337663572,1725929357789,-150.0,0.00012471,2]
[337663573,1725929357822,-150.0,0.00012475,2]
[337663574,1725929357859,-691.95701945,0.00012485,2]
[337663575,1725929357899,-2792.46374859,0.00012485,2]
[337663577,1725929380943,-6058.33986229,0.00012485,2]
[337663578,1725929380985,-534.98956967,0.00012485,2]
[337663580,1725929381018,-892.1665,0.00012485,2]
[337663581,1725929381049,-323.6751,0.00012485,2]
[337663582,1725929381082,-1468.5995,0.00012485,2]
[337663583,1725929381115,-328.46226737,0.00012485,2]
[337663584,1725929403118,250.0,0.00011622,2]
[337663593,1725929431768,-387.11384311,0.00012485,2]
[337663594,1725929431785,-150.0,0.0001249,2]
[337663595,1725929431797,-150.0,0.00012509,2]
[337663596,1725929431808,-16.26404007,0.00012514,2]
[337663597,1725929431822,-133.73595993,0.00012514,2]
[337663598,1725929431833,-150.0,0.00012519,2]
[337663599,1725929431844,-150.0,0.00012528,2]
[337663600,1725929431856,-2.33025234,0.00012547,2]
[337663657,1725929433371,-147.66974766,0.00012547,2]
[337663658,1725929433383,-150.0,0.00012548,2]
[337663659,1725929433393,-150.0,0.00012553,2]
[337663660,1725929433404,-150.0,0.00012553,2]
[337663661,1725929433415,-150.0,0.00012564,2]
[337663662,1725929433426,-150.0,0.00012566,2]
[337663663,1725929433437,-2930.84884718,0.0001257,2]
[337663664,1725929433455,-340.78735789,0.0001257,2]
[337663665,1725929433468,-1372.42754702,0.0001257,2]
[337663666,1725929433479,-150.0,0.00012571,2]
[337663667,1725929433490,-329.17987969,0.00012583,2]
[337663668,1725929433501,-169.5838256,0.00012583,2]
[337663669,1725929433512,-300.0,0.00012583,2]
[337663670,1725929433523,-1685.0112,0.00012584,2]
[337663671,1725929433534,-16516.6063,0.00012584,2]
[337663672,1725929433545,-647.697,0.00012585,2]
[337663673,1725929433556,-3202.847,0.00012585,2]
[337663674,1725929433567,-124575.5445,0.00012585,2]
[337663675,1725929433577,-1000.0,0.00012585,2]
[337663676,1725929433589,-150.0,0.00012585,2]
[337663677,1725929433600,-32895.3,0.00012586,2]
[337663678,1725929433612,-499.99,0.00012586,2]
[337663679,1725929433623,-1189.8323,0.00012586,2]
[337663680,1725929433635,-150.0,0.00012593,2]
[337663681,1725929433646,-150.0,0.00012604,2]
[337663682,1725929433657,-150.0,0.00012623,2]
[337663683,1725929433671,-150.0,0.00012623,2]
[337663684,1725929433683,-150.0,0.00012632,2]
[337663685,1725929433695,-150.0,0.00012643,2]
[337663686,1725929433707,-715.57611045,0.00012648,2]
[337663687,1725929433718,-150.0,0.00012662,2]
[337663688,1725929433728,-150.0,0.00012665,2]
[337663689,1725929433740,-181.519,0.00012669,2]
[337663690,1725929433750,-150.0,0.00012671,2]
[337663691,1725929433760,-160.03074413,0.00012673,2]
[337663692,1725929433771,-500.0,0.00012673,2]
[337663693,1725929433782,-160.111136,0.00012673,2]
[337663694,1725929433793,-500.0,0.00012673,2]
[337663695,1725929433804,-491.8074183,0.00012673,2]
[337663696,1725929433815,-500.0,0.00012673,2]
[337663697,1725929433827,-160.52,0.00012673,2]
[337663698,1725929433838,-150.0,0.00012675,2]
[337663699,1725929433851,-150.0,0.00012681,2]
[337663700,1725929433863,-3239.76530633,0.00012682,2]
[337663701,1725929437756,-310.24010705,0.00012681,2]
[337663702,1725929437814,-514.74031448,0.00012681,2]
[337663703,1725929437827,-664.45957847,0.00012681,2]
[337663704,1725929437838,-545.45715832,0.00012682,2]
[337663705,1725929437855,-2131.61753535,0.00012682,2]
[337663706,1725929437865,-1897.46,0.00012682,2]
[337663707,1725929437875,-8314.66,0.00012682,2]
[337663708,1725929437886,-1571.77,0.00012682,2]
[337663709,1725929437895,-8901.68,0.00012682,2]
[337663710,1725929437905,-1845.35,0.00012682,2]
[337663711,1725929437915,-7275.49,0.00012682,2]
[337663712,1725929437926,-6930.62,0.00012682,2]
[337663713,1725929437938,-6193.05,0.00012682,2]
[337663714,1725929437948,-500.0,0.00012682,2]
[337663715,1725929437958,-22769.2,0.00012682,2]
[337663716,1725929437969,-500.0,0.00012682,2]
[337663717,1725929437979,-9254.85,0.00012682,2]
[337663718,1725929437988,-6212.23,0.00012682,2]
[337663719,1725929438000,-3456.32,0.00012682,2]
[337663720,1725929438012,-6372.55,0.00012682,2]
[337663721,1725929438022,-1854.67,0.00012682,2]
[337663722,1725929438032,-500.0,0.00012682,2]
[337663723,1725929438043,-500.0,0.00012682,2]
[337663724,1725929438053,-2431.36,0.00012682,2]
[337663725,1725929438063,-713.27,0.00012682,2]
[337663726,1725929438072,-3032.76,0.00012682,2]
[337663727,1725929438081,-2559.72,0.00012682,2]
[337663728,1725929438092,-1074.67,0.00012682,2]
[337663729,1725929438102,-96248.68,0.00012682,2]
[337663730,1725929438112,-1001.49,0.00012683,2]
[337663732,1725929438121,-3971.77152798,0.00012683,2]
[337663736,1725929438151,-306.42367944,0.00012683,2]
[337663739,1725929438167,-133.99479258,0.00012683,2]
[337663741,1725929438176,-141.9697942,0.00012683,2]
[337663750,1725929438256,-1518.4202058,0.00012683,2]
[337663752,1725929438266,-784.59,0.00012683,2]
[337663753,1725929438275,-1577.13,0.00012683,2]
[337663755,1725929438284,-32.23222281,0.00012683,2]
[337663765,1725929439823,-3121.79065667,0.00012682,2]
[337663766,1725929439835,-534.15368355,0.00012682,2]
[337663767,1725929439848,-3129.1094665,0.00012682,2]
[337663768,1725929439986,-2285.34619328,0.00012682,2]
[337663769,1725929439996,-2689.09777719,0.00012683,2]
[337663770,1725929440005,-4648.45,0.00012683,2]
[337663771,1725929440015,-2076.41,0.00012683,2]
[337663772,1725929440025,-877.85917166,0.00012683,2]
[337663786,1725929442800,-2539.95082834,0.00012683,2]
[337663787,1725929442809,-1361.9,0.00012683,2]
[337663788,1725929442818,-2427.9,0.00012683,2]
[337663789,1725929442828,-3511.33,0.00012683,2]
[337663790,1725929442838,-1812.87,0.00012683,2]
[337663791,1725929442847,-4115.02,0.00012683,2]
[337663792,1725929442860,-500.0,0.00012683,2]
[337663793,1725929442869,-500.0,0.00012683,2]
[337663794,1725929442878,-500.0,0.00012683,2]
[337663795,1725929442888,-656.53,0.00012683,2]
[337663796,1725929442898,-538.5,0.00012683,2]
[337663797,1725929442907,-15044.35,0.00012683,2]
[337663798,1725929442917,-500.0,0.00012683,2]
[337663799,1725929442928,-500.0,0.00012683,2]
[337663800,1725929442937,-2356.45,0.00012683,2]
[337663801,1725929442947,-500.0,0.00012683,2]
[337663802,1725929442968,-500.0,0.00012683,2]
[337663803,1725929442982,-1051.42,0.00012683,2]
[337663804,1725929442991,-13477.34,0.00012683,2]
[337663805,1725929443001,-500.0,0.00012683,2]
[337663806,1725929443011,-6526.09,0.00012683,2]
[337663807,1725929443020,-502.00109639,0.00012683,2]
[337663808,1725929443030,-500.0,0.00012683,2]